bitfinex/quotes_ETHUSD_20241212
["timestamp","ask_amount","ask_price","bid_price","bid_amount"]
[1733994952879,2.55212,3918.3,3917.9,2.21281]
[1733994953081,0.55,3918.5,3918.0,2.21281]
[1733994953301,1.068451,3918.7,3918.1,2.21281]
[1733994953302,0.55,3918.6,3918.1,2.21281]
[1733994953514,1.21787913,3918.6,3918.2,0.88508397]
[1733994953822,1.21787913,3918.6,3917.9,1.07042225]
[1733994954043,1.21787913,3918.6,3918.0,2.21269648]
[1733994954328,0.55,3918.8,3918.1,3.28311873]
[1733994954619,3.62484454,3919.0,3918.2,3.28311873]
[1733994954800,1.32922808,3919.0,3918.3,3.28311873]
[1733994955002,1.32922808,3919.0,3918.4,2.21269648]
[1733994955201,1.32922808,3919.0,3918.5,0.88507859]
[1733994955410,2.04803922,3919.0,3918.2,3.62256225]
[1733994955642,1.068451,3919.2,3918.8,2.55177]
[1733994955908,2.86739953,3919.6,3918.9,2.21211391]
[1733994955909,1.79894853,3919.6,3918.9,2.21211391]
[1733994956112,0.73049753,3919.6,3919.0,2.21192082]
[1733994956271,0.92286725,3919.6,3919.1,0.88484556]
[1733994956468,0.92286725,3919.6,3918.9,1.85172225]
[1733994956469,0.92286725,3919.6,3918.9,0.7813]
[1733994956722,0.92286725,3919.6,3919.0,0.88428258]
[1733994957029,0.45469592,3919.5,3919.0,0.88428258]
[1733994957374,0.45469592,3919.5,3918.9,0.7813]
[1733994958628,0.92286725,3919.6,3918.9,0.7813]
[1733994959275,0.92286725,3919.6,3919.0,2.55165]
[1733994959470,0.73049753,3919.6,3919.0,2.55165]
[1733994959790,0.55,3919.8,3919.0,2.55165]
[1733994960473,0.55,3919.8,3918.9,0.7813]
[1733994960673,1.87922808,3919.8,3918.9,0.7813]
[1733994960933,0.42978885,3919.7,3918.9,0.7813]
[1733994961302,2.98100885,3919.7,3918.9,0.7813]
[1733994962118,0.42978885,3919.7,3918.9,0.7813]
[1733994962426,1.87922808,3919.8,3918.5,1.07042225]
[1733994962427,0.55,3919.6,3918.6,0.7774]
[1733994962626,2.55134,3919.5,3918.7,2.2077433]
[1733994962838,2.55134,3919.5,3918.6,0.7774]
[1733994962999,2.55141,3919.4,3918.7,0.88310105]
[1733994963206,2.55141,3919.4,3918.6,0.7774]
[1733994963207,0.55,3919.3,3918.6,0.7774]
[1733994963532,0.55,3919.3,3918.7,0.88298489]
[1733994964204,0.55,3919.4,3918.6,0.7774]
[1733994964937,2.55121,3919.7,3918.7,0.88281696]
[1733994965140,0.55,3919.6,3918.7,0.88281696]
[1733994965524,1.32922808,3920.1,3918.8,0.8083]
[1733994965722,3.88019808,3920.1,3919.0,2.55166]
[1733994965916,1.32922808,3920.1,3919.0,2.55166]
[1733994966239,2.68394281,3920.0,3919.0,2.55166]
[1733994966812,0.55,3919.9,3919.0,2.55166]
[1733994967343,0.55,3919.9,3918.8,0.8083]
[1733994967546,0.55,3919.9,3919.1,2.55157]
[1733994968530,0.55,3919.9,3919.2,2.55153]
[1733994968725,2.55064,3920.6,3919.1,0.7803]
[1733994968917,2.55064,3920.6,3919.6,0.7803]
[1733994968918,4.25298751,3920.6,3919.6,0.7803]
[1733994969751,1.70234751,3920.6,3919.6,0.7803]
[1733994970040,2.55083,3920.3,3919.6,0.7803]
[1733994970645,0.55,3920.5,3919.6,0.7803]
[1733994970820,3.1007,3920.5,3919.6,0.7803]
[1733994972163,2.55076,3920.4,3919.6,0.7803]
[1733994972336,0.55,3920.3,3919.6,0.7803]
[1733994977058,3.10083,3920.3,3919.6,0.7803]
[1733994977436,3.55631811,3920.3,3919.2,2.55153]
[1733994977637,0.55,3920.1,3919.2,0.7756]
[1733994979460,2.55108,3920.0,3919.2,0.7756]
[1733994979709,0.55,3919.9,3919.2,0.7756]
[1733994980149,1.32922808,3919.9,3918.7,0.7756]
[1733994980351,2.55134,3919.6,3918.7,0.7756]
[1733994980566,2.55137,3919.5,3918.7,0.7756]
[1733994980738,0.55,3919.6,3918.7,0.7756]
[1733994982226,0.55,3919.8,3918.7,0.7756]
[1733994982426,0.55,3919.5,3918.7,0.7756]
[1733994983052,0.55,3919.7,3918.7,0.7756]
[1733994983241,0.55,3919.6,3918.7,0.7756]
[1733994984069,2.55128,3919.6,3918.7,0.7756]
[1733994984386,2.55121,3919.7,3918.7,0.7756]
[1733994984554,2.5514,3919.5,3918.7,0.7756]
[1733994984755,0.55,3919.4,3918.7,0.7756]
[1733994985539,0.12482303,3920.6,3919.1,2.55158]
[1733994985743,2.55083,3920.3,3919.2,0.8009]
[1733994985951,2.55083,3920.3,3919.2,3.35243]
[1733994986352,2.95131811,3920.3,3919.2,3.35243]
[1733994986739,2.95131811,3920.3,3919.3,2.55146]
[1733994986939,0.55,3920.2,3919.3,2.55146]
[1733994988360,0.55,3920.2,3919.4,0.8117]
[1733994988560,0.55,3920.2,3919.4,3.3631]
[1733994988945,0.55,3920.2,3919.5,2.55133]
[1733994989144,0.55,3920.5,3919.6,3.36297]
[1733994989778,0.55,3920.5,3919.7,0.8117]
[1733994989973,0.55,3920.5,3919.7,3.36291]
[1733994991013,0.55,3920.6,3919.7,3.36291]
[1733994992256,0.55,3920.6,3919.8,0.8117]
[1733994999397,1.04360268,3920.6,3919.8,0.8117]
[1733995001816,0.55,3920.4,3919.8,0.8117]
[1733995002115,0.55,3920.2,3919.8,0.8117]
[1733995002480,0.55,3920.4,3919.8,0.8117]
[1733995002812,0.55,3920.2,3919.8,0.8117]
[1733995004233,0.55,3920.0,3919.5,0.7944]
[1733995004621,0.55,3919.9,3919.5,0.7944]
[1733995004934,0.55,3919.6,3919.2,0.7944]
[1733995005112,2.55095,3920.1,3919.3,0.88359608]
[1733995005113,0.55,3919.7,3919.3,0.88359608]
[1733995005280,0.55,3919.5,3919.3,0.88359608]
[1733995007096,0.55,3919.7,3919.3,0.88359608]
[1733995007297,0.55,3919.4,3919.2,0.7944]
[1733995009698,0.55,3919.6,3919.2,0.7944]
[1733995009899,0.55,3919.5,3919.2,0.7944]
[1733995011413,0.55,3919.7,3919.2,0.7944]
[1733995012340,3.619331,3920.3,3919.4,0.8057]
[1733995012511,3.58701356,3920.3,3919.6,0.8057]
[1733995012900,2.55096,3920.1,3919.6,0.8057]
[1733995013736,0.55,3920.0,3919.6,0.8057]
[1733995014132,0.55,3920.2,3919.6,0.8057]
[1733995014440,0.55,3920.0,3919.6,0.8057]
[1733995015313,0.55,3919.9,3919.6,0.8057]
[1733995016837,0.55,3920.1,3919.6,0.8057]
[1733995017039,3.10096,3920.1,3919.6,0.8057]
[1733995021347,0.55,3920.1,3919.6,0.8057]
[1733995021542,0.55,3919.9,3919.6,0.8057]
[1733995022949,1.068451,3920.3,3919.6,0.8057]
[1733995023246,0.55,3920.3,3919.6,0.8057]
[1733995023408,0.55,3920.3,3919.7,0.88371746]
[1733995024047,0.55,3920.3,3919.8,0.8218]
[1733995026134,2.55084,3920.3,3919.8,0.8218]
[1733995026445,0.55,3920.2,3919.8,0.8218]
[1733995027838,0.55,3920.5,3919.8,0.8218]
[1733995029230,0.55,3920.6,3919.8,0.8218]
[1733995029430,2.55077,3920.4,3919.8,0.8218]
[1733995029630,0.55,3920.3,3919.8,0.8218]
[1733995031428,0.55,3920.3,3919.9,0.88400847]
[1733995031654,0.55,3920.3,3919.8,0.8218]
[1733995033246,0.55,3920.3,3919.9,0.88375235]
[1733995033444,0.55,3920.3,3919.8,0.8218]
[1733995034557,0.55,3920.3,3919.9,0.88383016]
[1733995035057,0.55,3920.3,3919.8,0.8218]
[1733995035255,0.55,3920.3,3919.9,0.88377203]
[1733995035556,0.55,3920.3,3919.8,0.8218]
[1733995035762,0.55,3920.3,3919.9,0.88380187]
[1733995036267,0.55,3920.3,3919.8,0.8218]
[1733995036443,0.55,3920.3,3919.9,0.88379648]
[1733995036644,0.55,3920.3,3919.8,0.8218]
[1733995037469,0.55,3920.5,3919.9,0.88380824]
[1733995039643,0.55,3920.5,3919.8,0.8218]
[1733995039971,0.55,3920.3,3919.9,0.88383747]
[1733995041302,1.068451,3920.7,3920.0,0.7535]
[1733995041502,2.02234623,3921.0,3920.2,0.7535]
[1733995041789,3.24975831,3921.0,3920.2,0.7535]
[1733995041943,0.95389523,3921.0,3920.3,0.88373823]
[1733995042299,0.95389523,3921.0,3920.5,0.7591]
[1733995043599,0.55,3920.9,3920.5,0.7591]
[1733995051206,0.55,3920.9,3920.5,3.30976]
[1733995051407,0.55,3920.9,3920.6,1.687168]
[1733995051610,0.55,3920.9,3920.6,0.8048]
[1733995060880,0.55,3920.9,3920.6,3.35542]
[1733995061083,0.55,3920.9,3920.7,1.69108743]
[1733995061412,0.55,3920.9,3920.7,0.809]
[1733995064189,0.95389523,3921.0,3920.8,1.64277119]
[1733995064391,0.95389523,3921.0,3920.7,1.32922808]
[1733995064392,0.95389523,3921.0,3920.9,0.88207119]
[1733995064592,0.95389523,3921.0,3920.9,0.7607]
[1733995064781,0.95389523,3921.0,3920.9,1.64277119]
[1733995066691,0.95389523,3921.0,3920.9,0.7607]
[1733995070195,1.50389523,3921.0,3920.9,0.7607]
[1733995081986,1.50389523,3921.0,3920.6,0.7789]
[1733995082126,1.50389523,3921.0,3920.7,2.20661038]
[1733995082326,1.50389523,3921.0,3920.6,0.7789]
[1733995082537,1.50389523,3921.0,3920.7,2.2066654]
[1733995083663,0.55,3920.9,3920.6,0.7789]
[1733995083860,0.55,3920.9,3920.3,1.60128814]
[1733995083861,3.10043,3920.9,3920.3,1.89832225]
[1733995084039,0.55,3920.9,3920.4,2.20781978]
[1733995084419,0.55,3920.9,3920.5,0.88312791]
[1733995084643,0.55,3920.9,3920.6,0.88328854]
[1733995085085,0.55,3920.9,3920.4,1.07042225]
[1733995085260,0.55,3920.9,3920.5,2.20824935]
[1733995085458,0.55,3920.9,3920.6,2.20856356]
[1733995085771,0.55,3920.9,3920.4,1.07042225]
[1733995086093,3.10043,3920.9,3920.5,2.20886517]
[1733995086289,3.10043,3920.9,3920.6,0.88354607]
[1733995086495,0.55,3920.9,3920.4,1.07042225]
[1733995086658,0.55,3920.9,3920.5,2.20959478]
[1733995086861,0.55,3920.9,3920.6,2.20959478]
[1733995087112,0.55,3920.9,3920.3,1.89832225]
[1733995087318,0.55,3920.9,3920.4,2.20967271]
[1733995087621,0.55,3920.9,3920.5,2.20982601]
[1733995087780,3.10044,3920.9,3920.6,0.88386908]
[1733995088117,0.55,3920.9,3920.4,1.32922808]
[1733995088264,0.55,3920.9,3920.5,2.20984965]
[1733995088466,0.55,3920.9,3920.6,2.20984965]
[1733995088710,0.95389523,3921.0,3920.8,0.8076]
[1733995089001,1.50389523,3921.0,3920.9,2.20978767]
[1733995089295,1.50389523,3921.0,3920.9,0.88396044]
[1733995089793,1.50389523,3921.0,3920.9,2.20983645]
[1733995090409,0.95389523,3921.0,3920.9,3.2802587]
[1733995090898,0.95389523,3921.0,3920.9,3.27879762]
[1733995091267,0.95389523,3921.0,3920.9,5.58446645]
[1733995092098,0.95389523,3921.0,3920.9,8.95338389]
[1733995093022,0.95389523,3921.0,3920.9,7.35209575]
[1733995093787,0.95389523,3921.0,3920.9,7.35178987]
[1733995094030,0.95389523,3921.0,3920.9,8.68101795]
[1733995098014,0.95389523,3921.0,3920.9,6.13058795]
[1733995098534,0.95389523,3921.0,3920.9,8.68093645]
[1733995100460,0.95389523,3921.0,3920.9,11.35298371]
[1733995100661,0.95389523,3921.0,3920.9,10.88976376]
[1733995100960,0.95389523,3921.0,3920.9,8.68093645]
[1733995101139,0.95389523,3921.0,3920.9,10.88976376]
[1733995101927,0.95389523,3921.0,3920.9,11.3108199]
[1733995102252,3.617531,3923.0,3921.1,0.7914]
[1733995102448,2.54908,3923.0,3922.0,0.7914]
[1733995102650,0.52202075,3923.0,3922.1,2.20773471]
[1733995102839,2.54927,3922.7,3921.7,1.06787573]
[1733995103043,2.54927,3922.7,3921.8,2.20650895]
[1733995103240,2.54934,3922.6,3921.8,2.20650895]
[1733995103440,0.55,3922.5,3921.8,2.20650895]
[1733995103641,0.55,3922.5,3921.9,2.20650895]
[1733995103868,0.55,3922.5,3921.8,0.88260358]
[1733995104171,0.55,3922.9,3921.8,1.95047931]
[1733995104470,3.09932,3922.7,3921.9,2.20621306]
[1733995104766,3.09932,3922.7,3922.0,0.88219588]
[1733995104966,3.09932,3922.7,3921.8,1.06787573]
[1733995105155,3.09932,3922.7,3921.6,4.1517736]
[1733995105156,0.55,3922.7,3921.9,2.20551196]
[1733995105353,0.55,3922.5,3921.7,1.06787573]
[1733995105552,0.55,3922.5,3921.7,3.27290701]
[1733995105753,0.55,3922.5,3921.8,2.20503128]
[1733995106063,0.55,3922.5,3921.9,0.88201251]
[1733995106226,0.55,3922.5,3921.7,1.06787573]
[1733995106433,0.55,3922.5,3921.7,2.2050135]
[1733995106633,0.55,3922.5,3921.8,2.2050135]
[1733995106834,0.55,3922.5,3921.6,3.61783573]
[1733995107071,0.55,3922.5,3921.6,2.54996]
[1733995109668,0.55,3922.5,3921.8,3.87905808]
[1733995109873,0.55,3922.7,3922.2,3.87877808]
[1733995110109,2.54888,3923.3,3922.3,0.7538]
[1733995110368,0.50892199,3923.4,3922.3,0.7538]
[1733995110567,0.50892199,3923.4,3922.4,1.32922808]
[1733995111150,3.05774199,3923.4,3922.4,1.32922808]
[1733995111350,0.34570702,3923.3,3922.4,1.32922808]
[1733995111895,0.55,3923.2,3922.4,1.32922808]
[1733995112093,0.55,3923.2,3922.3,0.7538]
[1733995112094,2.54901,3923.1,3922.3,0.7538]
[1733995112297,0.55,3923.0,3922.3,0.7538]
[1733995114441,0.55,3923.2,3922.3,0.7538]
[1733995114663,0.78252096,3923.2,3922.3,0.7538]
[1733995116427,0.55,3923.0,3921.9,2.12002808]
[1733995116731,0.55,3922.9,3921.9,2.12002808]
[1733995116874,0.55,3922.9,3922.2,1.32922808]
[1733995117076,0.55,3923.1,3922.2,1.32922808]
[1733995117276,0.55,3922.9,3922.2,1.32922808]
[1733995117873,0.55,3922.7,3922.2,1.32922808]
[1733995120029,0.55,3922.7,3921.6,1.57067736]
[1733995120323,0.55,3922.7,3921.9,3.32886]
[1733995126533,0.55,3922.7,3921.9,0.7791]
[1733995127031,0.88652727,3922.7,3921.9,0.7791]
[1733995128497,0.55,3922.7,3921.9,0.7791]
[1733995132038,0.55,3922.7,3921.6,0.5046484]
[1733995132039,0.55,3922.7,3921.6,0.7682]
[1733995132341,0.55,3922.7,3921.6,2.09742808]
[1733995133310,3.09928,3922.7,3921.7,3.43051891]
[1733995133522,3.09928,3922.7,3921.8,2.20194697]
[1733995134315,3.09928,3922.7,3921.9,1.32922808]
[1733995134536,3.09928,3922.7,3921.7,3.61590896]
[1733995134721,3.43581527,3922.7,3921.8,2.20283683]
[1733995136832,3.43581527,3922.7,3921.9,2.20399622]
[1733995137030,3.43581527,3922.7,3922.0,0.88159849]
[1733995137201,3.43581527,3922.7,3921.7,2.39525704]
[1733995137406,3.43581527,3922.7,3921.8,2.20401196]
[1733995137741,3.43581527,3922.7,3921.9,2.20401196]
[1733995138108,3.43581527,3922.7,3922.0,0.88160478]
[1733995138336,3.43581527,3922.7,3921.8,1.06602896]
[1733995138516,3.43581527,3922.7,3921.7,3.87912808]
[1733995138517,3.43581527,3922.7,3921.9,3.27074001]
[1733995138716,3.43581527,3922.7,3922.0,2.20471105]
[1733995138923,3.43581527,3922.7,3922.1,0.88188415]
[1733995139217,3.43581527,3922.7,3921.7,4.94515704]
[1733995139412,3.43581527,3922.7,3921.8,3.27094072]
[1733995140216,3.43581527,3922.7,3922.1,0.8091]
[1733995140217,0.55,3922.7,3922.1,0.8091]
[1733995140427,0.55,3922.7,3922.2,2.54958]
[1733995140910,0.55,3922.7,3922.3,0.88201397]
[1733995141218,0.26607272,3922.8,3922.3,2.21124205]
[1733995141429,0.1491173,3923.4,3922.6,2.54931]
[1733995141660,0.1491173,3923.4,3922.4,2.20477318]
[1733995141661,0.1491173,3923.4,3922.4,1.06602896]
[1733995141825,0.1491173,3923.4,3922.5,0.88193379]
[1733995142151,0.1491173,3923.4,3922.8,2.54917]
[1733995142351,0.1491173,3923.4,3922.9,2.54912]
[1733995142587,0.1491173,3923.4,3923.3,4.63689808]
[1733995142724,0.1491173,3923.4,3923.3,7.90723548]
[1733995142917,0.1491173,3923.4,3923.3,6.84120652]
[1733995143352,0.1491173,3923.4,3923.3,7.90653637]
[1733995143556,0.1491173,3923.4,3923.3,7.90671761]
[1733995143727,0.1491173,3923.4,3923.3,7.90673581]
[1733995144486,0.1491173,3923.4,3923.3,6.84120652]
[1733995145719,0.1491173,3923.4,3923.3,8.60200866]
[1733995145919,0.1491173,3923.4,3923.3,10.1989691]
[1733995146267,0.1491173,3923.4,3923.3,6.84120652]
[1733995146975,0.1491173,3923.4,3923.3,10.19825389]
[1733995147311,0.1491173,3923.4,3923.3,6.84120652]
[1733995147610,0.1491173,3923.4,3923.3,7.90493727]
[1733995148207,0.1491173,3923.4,3923.3,6.84120652]
[1733995148993,0.1491173,3923.4,3923.3,7.89866294]
[1733995149161,0.1491173,3923.4,3923.3,7.89818966]
[1733995149776,0.1491173,3923.4,3923.3,6.83493219]
[1733995153097,2.54752,3925.4,3924.2,3.36767]
[1733995153296,2.54752,3925.4,3924.5,1.32922808]
[1733995154190,0.55,3925.3,3924.5,1.32922808]
[1733995154576,0.55,3925.5,3924.5,3.87730808]
[1733995154776,0.55,3925.5,3924.5,1.32922808]
[1733995154996,3.09744,3925.5,3924.5,1.32922808]
[1733995155191,0.55,3925.4,3924.5,1.32922808]
[1733995156565,0.55,3925.4,3924.3,2.5482]
[1733995156867,0.55,3925.4,3924.5,1.32922808]
[1733995157231,0.55,3925.4,3924.2,0.8194]
[1733995157232,3.09766,3925.2,3924.2,2.14862808]
[1733995157565,0.55,3925.0,3924.2,2.14862808]
[1733995157765,3.09777,3925.0,3924.2,2.14862808]
[1733995157999,3.09777,3925.0,3924.2,1.32922808]
[1733995158383,0.55,3925.0,3924.0,0.8226]
[1733995158698,2.54772,3925.1,3924.0,3.37098]
[1733995158877,0.55,3925.0,3924.0,3.37098]
[1733995159663,0.55,3925.0,3924.0,0.8226]
[1733995159864,0.55,3925.0,3924.1,2.54834]
[1733995160879,0.55,3925.0,3924.0,0.8226]
[1733995161424,0.55,3925.0,3924.0,3.37101]
[1733995161782,0.55,3924.9,3924.0,0.8226]
[1733995163373,0.55,3924.9,3924.1,2.54835]
[1733995163569,2.09765,3925.2,3924.2,1.32922808]
[1733995163770,2.54771,3925.1,3924.1,0.7999]
[1733995164072,2.54777,3925.0,3924.1,0.7999]
[1733995164271,2.54789,3924.9,3924.1,0.7999]
[1733995164538,2.54797,3924.7,3923.8,0.7999]
[1733995166842,2.54785,3924.9,3923.8,0.7999]
[1733995167931,2.5479,3924.8,3923.8,0.7999]
[1733995168869,0.26604688,3924.7,3923.8,0.7999]
[1733995169229,2.81403688,3924.7,3923.8,0.7999]
[1733995169861,2.54803,3924.6,3923.8,0.7999]
[1733995170631,2.54816,3924.4,3923.8,0.7999]
[1733995170852,2.54804,3924.6,3923.8,0.7999]
[1733995172183,0.26604688,3924.7,3923.9,1.32922808]
[1733995176982,0.26604688,3924.7,3924.0,0.8072]
[1733995182195,0.26604688,3924.7,3924.0,3.35561]
[1733995182501,0.26604688,3924.7,3924.1,2.54835]
[1733995182720,0.26604688,3924.7,3924.2,0.8012]
[1733995183076,0.26604688,3924.7,3924.4,0.8012]
[1733995192346,0.26604688,3924.7,3924.5,0.88119492]
[1733995194919,1.59527496,3924.7,3924.5,0.88119492]
[1733995195253,1.59527496,3924.7,3924.1,1.06156631]
[1733995195254,2.54809,3924.5,3924.1,1.06156631]
[1733995195450,4.14323496,3924.7,3924.2,2.20385742]
[1733995195745,2.54804,3924.6,3924.3,2.20384382]
[1733995195950,2.54804,3924.6,3924.1,1.06156631]
[1733995196115,2.54804,3924.6,3923.8,1.83436631]
[1733995196116,1.22773215,3924.5,3923.8,1.83436631]
[1733995196447,3.61481347,3924.6,3923.9,2.20434736]
[1733995196448,2.54804,3924.6,3923.9,2.20434736]
[1733995196641,2.54804,3924.6,3924.0,0.88173894]
[1733995196642,1.23985467,3924.5,3924.0,0.88173894]
[1733995196845,1.23985467,3924.5,3923.8,1.83436631]
[1733995197014,1.23985467,3924.5,3923.9,2.20436841]
[1733995197210,3.78794467,3924.5,3924.0,0.88174736]
[1733995197409,2.54809,3924.5,3923.8,1.83436631]
[1733995197612,2.54809,3924.5,3923.9,2.2043201]
[1733995197843,2.54809,3924.5,3924.0,0.88172804]
[1733995198044,2.54809,3924.5,3923.8,1.83436631]
[1733995198243,2.54809,3924.5,3923.4,2.12313263]
[1733995198244,1.32922808,3924.1,3923.9,2.20428747]
[1733995198408,2.54868,3923.6,3923.2,1.06156631]
[1733995198617,3.87790808,3923.6,3923.3,2.20517428]
[1733995198837,3.87790808,3923.6,3922.8,0.7868]
[1733995198838,3.87790808,3923.6,3923.0,1.06156631]
[1733995199064,3.87790808,3923.6,3922.8,2.37914947]
[1733995199065,2.54891,3923.3,3923.1,2.20556002]
[1733995199267,2.54891,3923.3,3922.8,1.84836631]
[1733995199428,2.54894,3923.2,3922.9,2.20462068]
[1733995199760,2.54895,3923.2,3922.8,0.7868]
[1733995199919,2.54895,3923.2,3922.9,0.88194225]
[1733995200120,2.54895,3923.2,3922.8,0.7868]
[1733995200522,2.54895,3923.2,3921.8,3.0]
[1733995200523,1.32922808,3922.9,3922.3,1.06156631]
[1733995200843,1.32922808,3922.9,3922.1,1.06156631]
[1733995200844,2.54939,3922.5,3922.1,1.06156631]
[1733995201156,2.54946,3922.4,3922.2,0.88236873]
[1733995201329,2.54946,3922.4,3921.7,1.82346631]
[1733995201536,2.54946,3922.4,3921.8,2.2037021]
[1733995201751,2.54954,3922.3,3921.9,2.2037021]
[1733995201927,2.54954,3922.3,3921.7,1.82346631]
[1733995202126,2.54954,3922.3,3921.8,2.20387988]
[1733995202372,2.54954,3922.3,3921.9,0.88160045]
[1733995202529,2.54954,3922.3,3921.7,0.7619]
[1733995203684,2.54964,3922.2,3921.3,0.7738]
[1733995204534,3.87868808,3922.4,3921.3,0.7738]
[1733995207871,1.32922808,3922.4,3921.3,0.7738]
[1733995208087,2.54974,3922.0,3921.3,0.7738]
[1733995208436,3.87908808,3921.8,3921.3,0.7738]
[1733995208635,3.87908808,3921.8,3921.1,0.7875]
[1733995209758,2.54993,3921.7,3921.1,0.7875]
[1733995210779,2.55,3921.6,3921.1,0.7875]
[1733995211134,3.87907808,3921.8,3921.1,0.7875]
[1733995211334,2.54993,3921.7,3921.1,0.7875]
[1733995212341,2.55,3921.6,3921.1,0.7875]
[1733995213290,3.87908808,3921.8,3921.1,0.7875]
[1733995213644,2.54994,3921.7,3921.1,0.7875]
[1733995214963,1.32922808,3921.8,3921.1,0.7875]
[1733995215540,2.54984,3921.9,3921.1,0.7875]
[1733995216075,2.54985,3921.8,3921.1,0.7875]
[1733995216660,1.32922808,3921.5,3920.3,0.8139]
[1733995216856,2.55015,3921.4,3920.3,0.8139]
[1733995217067,2.55019,3921.3,3920.3,0.8139]
[1733995217750,1.32922808,3921.2,3920.3,0.8139]
[1733995218079,3.10032,3921.1,3920.3,0.8139]
[1733995218283,3.54327481,3921.1,3920.3,0.8139]
[1733995218707,0.55,3921.1,3920.3,0.8139]
[1733995220784,0.254985,3921.7,3919.5,2.55129]
[1733995220785,0.55,3920.8,3919.5,2.55133]
[1733995221003,1.32922808,3920.6,3919.5,2.55133]
[1733995221646,1.32922808,3920.6,3919.5,3.0710443]
[1733995222270,3.87986808,3920.6,3919.5,3.0710443]
[1733995222480,3.10071,3920.5,3919.5,0.5197143]
[1733995223848,2.55076,3920.4,3919.5,0.5197143]
[1733995224062,1.32922808,3920.3,3919.5,0.5197143]
[1733995225591,1.32922808,3920.3,3919.4,0.7667]
[1733995226014,1.32922808,3920.3,3919.4,1.28197753]
[1733995226173,1.32922808,3920.0,3919.4,1.28197753]
[1733995226782,1.32922808,3920.0,3919.4,0.7667]
[1733995227086,1.32922808,3919.7,3918.8,3.35189]
[1733995227305,1.32922808,3919.7,3918.8,1.29921136]
[1733995228399,1.32922808,3919.7,3918.8,0.8001]
[1733995228799,1.32922808,3919.7,3918.8,3.35188]
[1733995229006,0.55,3919.8,3918.9,2.55169]
[1733995229514,1.32922808,3919.7,3918.9,2.55169]
[1733995230145,2.55073,3920.5,3919.1,2.55156]
[1733995230377,2.55023,3921.2,3919.2,0.7684]
[1733995230499,1.32922808,3920.4,3919.4,2.55139]
[1733995230701,1.32922808,3920.4,3919.5,0.7684]
[1733995233821,2.81836056,3921.2,3920.0,3.32999]
[1733995234186,2.81836056,3921.2,3920.0,0.779]
[1733995234821,0.55,3921.1,3920.0,0.779]
[1733995235948,3.07786695,3921.7,3920.1,0.7705]
[1733995236123,2.54999,3921.6,3920.4,0.8315]
[1733995236684,2.54999,3921.6,3920.4,3.38219]
[1733995236814,2.54969,3922.1,3920.5,2.55068]
[1733995237015,1.17228317,3922.4,3920.6,0.8315]
[1733995237016,2.54985,3921.8,3920.6,0.8315]
[1733995237420,0.55,3921.7,3920.6,0.8315]
[1733995237621,0.55,3921.5,3920.6,0.8315]
[1733995238070,0.55,3921.7,3920.6,0.8315]
[1733995238552,0.67463243,3921.7,3920.6,0.8315]
[1733995238747,0.55,3921.5,3920.6,0.8315]
[1733995239052,0.55,3921.5,3920.7,2.55054]
[1733995239347,0.55,3921.7,3920.7,2.55054]
[1733995239912,0.55,3921.7,3920.6,0.8315]
[1733995240115,0.55,3921.5,3920.6,0.8315]
[1733995241162,5.37299195,3921.4,3920.1,2.55092]
[1733995241323,5.37299195,3921.4,3920.2,0.786]
[1733995241324,0.55,3921.3,3920.2,0.786]
[1733995241651,0.5922992,3921.2,3920.2,0.786]
[1733995241850,0.55,3921.1,3920.2,0.786]
[1733995242052,3.10033,3921.1,3920.2,0.786]
[1733995245122,0.55,3921.1,3920.2,0.786]
[1733995247058,0.55,3920.8,3920.2,0.786]
[1733995248530,0.55,3920.8,3919.7,2.55121]
[1733995248531,0.55,3920.7,3919.6,0.7887]
[1733995248830,0.310044,3920.8,3919.6,0.7887]
[1733995248831,0.55,3920.4,3919.6,0.7887]
[1733995249824,0.55,3920.7,3919.6,0.7887]
[1733995250161,3.10058,3920.7,3919.6,0.7887]
[1733995250324,3.7239306,3920.7,3919.6,0.7887]
[1733995250533,3.10058,3920.7,3919.6,0.7887]
[1733995251863,0.55,3920.7,3919.7,2.55121]
[1733995252069,0.55,3920.8,3919.7,2.55121]
[1733995253056,2.55051,3920.8,3919.7,2.55121]
[1733995253361,0.55,3920.7,3919.7,2.55121]
[1733995253765,0.55,3920.7,3919.6,0.7887]
[1733995254768,0.5923392,3920.8,3919.6,0.7887]
[1733995254769,0.55,3920.5,3919.6,0.7887]
[1733995255145,0.55,3920.7,3919.6,0.7887]
[1733995255462,3.10057,3920.7,3919.6,0.7887]
[1733995255880,3.10057,3920.7,3919.6,3.33997]
[1733995256093,3.10057,3920.7,3919.7,0.88108581]
[1733995256244,3.10057,3920.7,3919.7,2.20265099]
[1733995256440,3.10057,3920.7,3919.8,0.88114379]
[1733995256641,3.10057,3920.7,3919.6,3.33997]
[1733995256863,3.10057,3920.7,3919.7,2.20295783]
[1733995257246,3.10057,3920.7,3919.6,0.7887]
[1733995257247,4.42918128,3920.7,3919.6,0.7887]
[1733995257474,4.7984722,3920.7,3919.7,0.88129101]
[1733995257845,1.32861128,3920.4,3919.6,0.7887]
[1733995258250,1.5534015,3920.4,3919.3,0.7818]
[1733995258447,0.55,3920.3,3919.3,0.7818]
[1733995258686,0.55,3920.3,3919.1,1.06486005]
[1733995258687,1.32861128,3920.0,3919.1,1.06486005]
[1733995258892,1.32861128,3920.0,3919.2,0.88178891]
[1733995259453,0.85548212,3920.0,3919.2,0.88178891]
[1733995260063,0.55,3919.9,3919.2,0.88178891]
[1733995260464,0.55,3920.2,3919.2,3.43329891]
[1733995260685,0.55,3920.2,3919.3,0.88178891]
[1733995261452,0.88256302,3920.2,3919.3,2.20516378]
[1733995261879,5.37471242,3920.6,3919.4,0.8189]
[1733995262232,2.55052,3920.8,3919.6,2.55127]
[1733995262379,2.55052,3920.8,3919.4,4.08856829]